bitfinex-derivatives/quotes_ETHF0:USTF0_20260204
["timestamp","ask_amount","ask_price","bid_price","bid_amount"]
[1770222538150,0.00434956,2134.1,2133.0,7.72075298]
[1770222538358,0.00434956,2134.1,2133.0,7.95550298]
[1770222539755,7.72722443,2134.6,2133.2,7.53105026]
[1770222539956,7.72722443,2134.6,2133.3,7.53104026]
[1770222540454,0.469,2135.4,2133.8,7.29631026]
[1770222540757,7.72722443,2134.6,2133.8,0.00375955]
[1770222540952,1.07886,2135.1,2133.8,0.00375955]
[1770222540953,7.72722443,2135.3,2133.8,8.37582026]
[1770222541151,7.72722443,2135.3,2133.7,7.29631026]
[1770222541352,7.72722443,2135.3,2133.8,7.53098026]
[1770222541558,7.73326909,2135.4,2134.0,7.53096026]
[1770222541759,0.00604466,2135.4,2134.3,7.29631026]
[1770222541958,0.00604466,2135.4,2134.5,7.53090026]
[1770222542154,0.00604466,2135.4,2134.5,8.37546026]
[1770222542360,8.19622443,2136.6,2135.2,7.29631026]
[1770222542557,7.72722443,2135.8,2134.3,7.3023853]
[1770222542757,8.80593443,2135.4,2134.3,0.00607504]
[1770222542957,0.23451,2135.3,2134.3,0.00607504]
[1770222543157,7.72722443,2135.2,2133.9,0.469]
[1770222543455,7.96177443,2134.9,2133.5,7.29631026]
[1770222543653,7.72722443,2134.2,2132.6,7.29631026]
[1770222543853,7.72722443,2134.2,2132.8,8.61107026]
[1770222544062,7.72722443,2134.6,2133.2,7.29631026]
[1770222544257,0.00597884,2134.2,2132.8,0.00355557]
[1770222544459,0.00597884,2134.2,2132.8,7.29986583]
[1770222544460,7.73320327,2134.2,2132.8,7.29986583]
[1770222545762,7.73320327,2134.2,2132.8,0.00355557]
[1770222546062,7.73320327,2134.2,2132.8,7.29986583]
[1770222546461,0.00597884,2134.2,2133.2,7.29631026]
[1770222546657,0.469,2134.8,2133.2,7.29631026]
[1770222546861,0.469,2134.8,2133.2,7.53105026]
[1770222547061,7.72722443,2135.0,2133.2,7.53105026]
[1770222547062,7.96172443,2135.4,2133.6,7.29631026]
[1770222547261,7.72722443,2135.4,2133.9,1.31412]
[1770222547466,7.72722443,2135.4,2133.7,1.07956]
[1770222547467,8.19622443,2135.6,2134.0,7.53096026]
[1770222547657,7.73160698,2135.4,2134.0,7.29631026]
[1770222547857,7.73160698,2135.4,2133.6,7.29631026]
[1770222548562,7.72722443,2135.2,2133.6,7.29631026]
[1770222549166,7.72722443,2135.2,2133.8,7.29631026]
[1770222549564,0.00438255,2135.4,2133.9,0.23466]
[1770222549868,0.00438255,2135.4,2134.0,7.53096026]
[1770222550265,0.00438255,2135.4,2134.6,7.29631026]
[1770222550466,7.72722443,2136.4,2135.0,7.53085026]
[1770222551367,7.73248839,2136.4,2135.0,2.30007834]
[1770222551666,7.73248839,2136.4,2135.0,0.00376808]
[1770222551870,0.00526396,2136.4,2135.2,0.23452]
[1770222552067,0.00526396,2136.4,2135.8,0.23445]
[1770222552260,0.00526396,2136.4,2135.3,0.23451]
[1770222552459,0.00526396,2136.4,2135.3,1.08941]
[1770222552665,1.07761,2137.6,2135.3,1.08941]
[1770222552666,7.72722443,2137.5,2136.0,1.0784]
[1770222552863,7.72722443,2137.5,2136.4,1.07815]
[1770222553074,7.72722443,2138.2,2136.8,0.23434]
[1770222553270,0.23421,2138.0,2136.2,0.2344]
[1770222553463,7.72722443,2137.5,2136.1,7.05591558]
[1770222553662,7.9648183,2137.5,2136.1,7.05969467]
[1770222553969,7.96153443,2137.1,2136.1,0.00377909]
[1770222554165,7.72722443,2136.9,2136.1,0.00377909]
[1770222554370,0.00332387,2137.5,2136.5,6.82228558]
[1770222554571,0.00332387,2137.5,2136.6,6.82227558]
[1770222554765,0.00332387,2137.5,2136.8,6.58791558]
[1770222555470,0.00332387,2137.5,2136.3,6.60396373]
[1770222555671,7.7305483,2137.5,2136.3,6.60396373]
[1770222556073,7.7305483,2137.5,2136.6,6.83832373]
[1770222556074,0.00332387,2137.5,2136.6,6.83832373]
[1770222556367,0.468,2138.4,2137.2,6.83493986]
[1770222556567,7.72722443,2138.2,2136.8,6.60063986]
[1770222556772,7.72722443,2138.0,2136.8,6.60063986]
[1770222557175,7.73315271,2138.0,2136.8,6.60063986]
[1770222557674,7.73315271,2138.0,2136.4,6.71424402]
[1770222557972,7.73315271,2138.0,2136.5,0.23437]
[1770222558174,7.73315271,2138.0,2136.5,6.71422402]
[1770222558373,7.73315271,2138.0,2136.6,6.71420402]
[1770222558576,7.73315271,2138.0,2136.7,6.71420402]
[1770222559372,7.73315271,2138.0,2136.8,6.71419402]
[1770222559569,0.00592828,2138.0,2137.2,6.81355341]
[1770222560269,0.00592828,2138.0,2137.3,6.81354341]
[1770222560468,0.00592828,2138.0,2136.9,6.57926341]
[1770222561073,7.73315271,2138.0,2136.9,6.57926341]
[1770222561270,0.00592828,2138.0,2137.1,6.57926341]
[1770222561473,4.3902963,2139.5,2137.1,6.57926341]
[1770222561474,7.72722443,2138.8,2137.2,7.04289937]
[1770222561672,7.72722443,2138.4,2137.2,0.468]
[1770222561976,7.96143443,2138.0,2136.8,6.57489937]
[1770222562375,7.96481084,2138.0,2136.6,0.23436]
[1770222562673,7.72722443,2137.6,2136.4,7.04289937]
[1770222563272,7.96148443,2137.6,2136.4,0.468]
[1770222563469,7.96148443,2137.6,2136.4,7.04097633]
[1770222563676,7.13983405,2137.4,2136.4,0.468]
[1770222564174,47.93983405,2137.8,2136.4,7.03312393]
[1770222564476,7.13983405,2137.8,2136.5,6.56512393]
[1770222564675,7.13983405,2137.8,2136.6,6.79948393]
[1770222564879,7.13983405,2137.8,2136.4,0.468]
[1770222565476,7.13983405,2137.8,2136.4,7.03312393]
[1770222565877,7.13983405,2137.6,2136.4,7.03312393]
[1770222566173,7.13983405,2137.6,2136.4,7.26751393]
[1770222567374,7.13983405,2137.4,2136.1,0.00377909]
[1770222567575,7.13983405,2137.4,2136.1,6.63370911]
[1770222568175,7.13983405,2137.4,2136.1,6.86812911]
[1770222568772,7.13983405,2137.7,2136.4,6.62993002]
[1770222568977,7.13983405,2137.4,2136.1,0.00377909]
[1770222569179,7.13983405,2137.4,2136.3,6.62993002]
[1770222569579,7.13983405,2137.8,2136.5,6.92097633]
[1770222569773,7.13983405,2137.8,2136.7,6.68660633]
[1770222570272,0.00337641,2138.0,2137.0,6.92092633]
[1770222570474,7.13983405,2139.1,2137.7,6.68322992]
[1770222570672,7.13983405,2138.6,2137.3,0.468]
[1770222570878,7.13983405,2138.1,2136.9,6.68322992]
[1770222571069,7.13983405,2138.1,2136.5,7.15122992]
[1770222571274,7.13983405,2137.8,2136.5,7.15122992]
[1770222571575,0.00506219,2137.8,2136.9,6.660297]
[1770222571980,7.14489624,2137.8,2136.5,7.13249514]
[1770222572478,0.00506219,2137.8,2136.8,6.660297]
[1770222572677,0.00506219,2137.8,2137.0,6.660297]
[1770222573279,0.00506219,2137.8,2136.6,6.660297]
[1770222573573,7.14489624,2137.8,2136.6,6.660297]
[1770222573776,7.13983405,2137.5,2136.5,0.47219814]
[1770222574174,7.13983405,2137.5,2136.5,0.00419814]
[1770222574570,7.13983405,2138.7,2137.3,6.91537413]
[1770222574774,7.13983405,2138.7,2136.7,1.07803]
[1770222574775,7.13983405,2138.7,2137.5,7.14963413]
[1770222574973,7.13983405,2138.7,2137.1,6.91537413]
[1770222575175,7.13983405,2138.1,2136.7,9.67150047]
[1770222575374,0.08142494,2138.6,2137.1,6.70298166]
[1770222575586,7.13983405,2140.3,2138.9,6.93709166]
[1770222575777,7.37898922,2140.3,2138.9,0.00461017]
[1770222576078,7.13983405,2140.1,2138.9,0.00461017]
[1770222577176,7.13983405,2140.1,2138.9,6.70759183]
[1770222577480,7.13983405,2140.1,2138.9,0.00461017]
[1770222577880,0.468,2140.0,2138.9,0.00461017]
[1770222578076,7.13983405,2140.1,2138.9,0.00461017]
[1770222578375,7.13983405,2140.1,2139.0,6.84483007]
[1770222578680,7.16276369,2141.1,2140.2,0.23396]
[1770222579071,0.02292964,2141.1,2140.2,1.07628]
[1770222579274,0.468,2142.6,2140.8,7.92059007]
[1770222579479,7.13983405,2142.3,2140.8,6.61073007]
[1770222579679,7.13983405,2142.3,2140.8,0.00606009]
[1770222579880,7.13983405,2141.5,2140.8,0.00606009]
[1770222580082,0.468,2141.4,2140.8,0.00606009]
[1770222580277,0.45520262,2141.1,2140.0,6.56607832]
[1770222580479,7.60783405,2141.4,2140.0,6.56607832]
[1770222580681,7.13983405,2141.2,2140.0,6.56607832]
[1770222581181,7.13983405,2142.3,2140.6,6.56607832]
[1770222581383,7.13983405,2141.9,2140.6,0.00355096]
[1770222581883,7.13983405,2141.4,2140.6,0.00355096]
[1770222582280,0.45520262,2141.1,2140.6,0.00355096]
[1770222582479,7.13983405,2141.1,2140.6,0.00355096]
[1770222582675,0.45520262,2141.0,2140.6,0.00355096]
[1770222583183,0.468,2141.2,2140.0,7.81232311]
[1770222583379,0.467,2141.4,2140.1,6.73593311]
[1770222583579,0.467,2141.4,2139.4,4.1580159]
[1770222583580,7.13983405,2141.2,2139.7,6.53272086]
[1770222583780,1.07564,2141.5,2138.9,6.53272086]
[1770222583781,7.59503667,2140.8,2138.9,6.53272086]
[1770222583981,7.37378405,2140.4,2138.5,6.53272086]
[1770222584182,7.37378405,2140.4,2138.9,0.00593387]
[1770222584384,7.13983405,2140.2,2138.9,0.00593387]
[1770222584581,7.13983405,2140.0,2138.9,0.00593387]
[1770222584878,7.13983405,2139.8,2138.9,0.00593387]
[1770222585280,7.13983405,2139.3,2137.8,6.77288473]
[1770222585686,7.13983405,2139.3,2137.8,6.53865473]
[1770222586185,0.00419106,2139.3,2138.1,6.84750585]
[1770222586781,7.14402511,2139.3,2138.1,6.61330585]
[1770222587083,0.467,2139.2,2138.1,6.61330585]
[1770222587284,7.13983405,2138.7,2137.6,1.70022687]
[1770222587484,0.467,2139.0,2137.7,6.6435649]
[1770222587790,7.60683405,2139.0,2137.7,6.6435649]
[1770222587976,7.13983405,2139.0,2137.8,1.70022687]
[1770222588183,7.60683405,2139.0,2137.8,1.70488872]
[1770222588385,0.00419106,2139.3,2138.0,6.8777649]
[1770222589187,7.14402511,2139.3,2138.1,1.70022687]
[1770222589482,7.37809511,2139.3,2138.1,1.70022687]
[1770222589688,7.37809511,2139.3,2137.8,0.00466185]
[1770222589689,7.13983405,2139.1,2137.8,0.00466185]
[1770222589886,7.37395405,2138.9,2137.9,1.70022687]
[1770222590087,7.13983405,2138.9,2137.9,1.70022687]
[1770222590288,0.467,2138.8,2137.9,1.70022687]
[1770222590486,7.60683405,2138.7,2137.9,1.70022687]
[1770222590784,7.13983405,2139.1,2137.9,1.70022687]
[1770222591880,7.59503667,2139.0,2137.9,1.70022687]
[1770222592284,0.45520262,2138.9,2137.9,1.70022687]
[1770222592484,7.13983405,2139.0,2137.9,1.70022687]
[1770222592686,7.13983405,2139.0,2138.0,1.70022687]
[1770222592985,7.59503667,2138.9,2138.0,1.70022687]
[1770222593487,0.45520262,2138.7,2138.0,1.70022687]
[1770222593888,7.13983405,2138.9,2138.0,1.70022687]
[1770222593889,0.45520262,2138.6,2138.0,1.70022687]
[1770222594288,0.467,2139.2,2138.0,1.70022687]
[1770222594289,0.45520262,2138.4,2138.0,1.70022687]
[1770222594488,0.467,2138.9,2138.0,1.70022687]
[1770222594687,0.92220262,2138.9,2138.0,1.70022687]
[1770222595285,0.45520262,2138.7,2138.0,1.70022687]
[1770222595586,7.45117608,2138.2,2137.1,0.2343]
[1770222595781,7.45117608,2138.2,2137.7,1.70022687]
[1770222595982,7.45117608,2138.2,2137.3,1.70022687]
[1770222596588,7.45117608,2138.2,2137.3,1.70447126]
[1770222596789,0.45520262,2138.1,2137.3,1.70447126]
[1770222597191,0.45520262,2138.1,2137.3,1.93875126]
[1770222597494,7.91917608,2138.9,2137.5,7.05323165]
[1770222597889,0.45520262,2138.8,2137.6,1.70022687]
[1770222598089,7.61522937,2138.8,2137.6,8.7456789]
[1770222598291,7.61522937,2138.6,2137.6,8.7456789]
[1770222598592,7.16002675,2138.6,2137.7,0.9355]
[1770222598790,7.62802675,2138.6,2137.7,0.9355]
[1770222598990,7.61522937,2138.3,2137.8,1.70022687]
[1770222599192,7.16002675,2138.8,2137.8,1.70022687]
[1770222599493,7.61522937,2138.3,2137.7,0.9355]
[1770222599695,7.16002675,2138.1,2137.3,0.00424439]
[1770222599990,7.16002675,2138.8,2137.3,7.22624281]
[1770222600188,7.16002675,2138.6,2137.4,0.23428]
[1770222600493,7.16002675,2137.9,2136.4,7.22199842]
[1770222600690,0.468,2138.0,2137.0,7.45631842]
[1770222600886,7.62802675,2138.0,2136.6,7.22199842]
[1770222601087,7.39429675,2137.5,2136.5,0.9336]
[1770222601290,7.16002675,2137.2,2136.5,0.9336]
[1770222601484,7.61522937,2137.6,2136.5,0.9336]
[1770222601689,7.16002675,2138.0,2136.9,0.23433]
[1770222601889,7.16002675,2138.0,2136.6,7.22199842]
[1770222602093,7.16002675,2138.2,2136.9,7.22199842]
[1770222602291,7.62802675,2138.1,2136.9,7.22199842]
[1770222602592,7.16002675,2137.3,2136.5,0.93758909]
[1770222602792,0.00346174,2137.3,2136.5,0.93758909]
[1770222602994,0.00346174,2137.3,2136.9,0.23433]
[1770222603293,0.00346174,2137.3,2136.5,8.01943751]
[1770222603493,0.00346174,2137.3,2136.5,8.25380751]
[1770222603693,7.16002675,2138.1,2137.1,1.07785]
[1770222603894,7.16002675,2138.7,2137.2,7.22199842]
[1770222604088,7.16002675,2138.7,2137.4,0.23427]
[1770222604298,0.468,2138.8,2136.4,7.45637842]
[1770222604299,7.16002675,2137.6,2136.4,7.45637842]
[1770222604499,0.468,2137.5,2136.5,8.01943751]
[1770222604794,0.00561222,2137.5,2136.5,8.01943751]
[1770222604995,0.45520262,2137.2,2136.5,0.79743909]
[1770222605190,7.61522937,2137.0,2136.5,0.79027239]
[1770222605395,7.61522937,2136.9,2135.6,7.45646842]
[1770222605597,7.16002675,2136.9,2135.6,7.45646842]
[1770222605789,7.61522937,2136.8,2135.6,7.45646842]
[1770222605993,7.16002675,2136.8,2135.8,0.23445]
[1770222606188,7.62802675,2137.4,2135.8,7.22199842]
[1770222606394,7.16002675,2137.2,2136.1,0.23441]
[1770222606593,7.16002675,2137.0,2135.8,0.00359911]
[1770222606795,7.16563897,2137.5,2136.3,7.45638842]
[1770222606992,7.16002675,2138.3,2137.5,0.23426]
[1770222607293,7.16002675,2139.1,2137.7,7.22199842]
[1770222607490,7.16002675,2139.5,2138.4,0.23416]
[1770222607696,7.16002675,2139.5,2138.1,7.22199842]
[1770222607994,7.16002675,2140.2,2138.8,7.22199842]
[1770222608193,7.16002675,2140.2,2138.6,7.22199842]
[1770222608390,7.16002675,2140.2,2138.8,7.22199842]
[1770222608591,7.16002675,2140.6,2139.2,8.29878842]
[1770222608790,7.62802675,2141.3,2139.8,7.45600842]
[1770222608996,8.46973675,2141.1,2139.8,0.0041979]
[1770222609192,7.16002675,2140.4,2138.9,7.22199842]
[1770222609494,7.16002675,2140.2,2138.5,7.22199842]
[1770222609695,7.39408675,2139.4,2137.6,7.22199842]
[1770222609899,7.16002675,2139.2,2137.8,7.45622842]
[1770222610100,7.16002675,2139.2,2138.3,0.46765029]
[1770222610295,7.16002675,2138.8,2137.0,4.1475453]
[1770222610501,8.23701675,2138.8,2137.0,7.22199842]
[1770222610699,7.16002675,2138.5,2136.6,11.36954372]
[1770222610899,7.16002675,2138.3,2136.6,7.22199842]
[1770222611094,7.16002675,2138.3,2136.8,7.45633842]
[1770222611298,7.16002675,2138.3,2137.0,7.45631842]
[1770222611498,7.16002675,2138.3,2136.8,0.00519102]
[1770222611699,8.23752675,2137.8,2135.8,4.1475453]
[1770222611998,7.39428675,2137.6,2135.7,7.45645842]
[1770222612197,7.16002675,2137.4,2135.7,0.23446]
[1770222612400,7.16002675,2137.4,2135.0,0.468]
[1770222612401,7.16002675,2136.8,2135.0,0.468]
[1770222612803,7.16346687,2136.8,2135.0,0.4728299]
[1770222613004,7.16346687,2136.8,2135.3,8.30072842]
[1770222613199,7.16346687,2136.8,2135.4,8.30066842]
[1770222613503,7.16346687,2136.8,2136.1,8.53475842]
[1770222613504,0.00344012,2136.8,2136.1,8.53475842]
[1770222613706,7.16002675,2137.7,2136.1,8.53475842]
[1770222613707,7.16002675,2137.7,2136.1,7.45640842]
[1770222613999,7.16002675,2137.7,2136.1,7.22199842]
[1770222614200,1.54553,2137.8,2135.4,8.25258445]
[1770222614201,7.16002675,2137.2,2135.4,4.16364267]
[1770222614398,7.16002675,2137.2,2135.0,0.0048299]
[1770222614399,7.16002675,2136.8,2135.0,0.0048299]
[1770222614703,8.47253675,2136.6,2135.0,0.0048299]
[1770222615202,7.39439675,2136.6,2135.0,0.0048299]
[1770222615603,7.62802675,2136.6,2135.0,7.22682832]
[1770222615995,7.39441675,2136.4,2135.0,0.0048299]
[1770222616296,8.47262675,2136.4,2135.0,0.0048299]
[1770222616501,7.39441675,2136.4,2135.0,0.0048299]
[1770222616699,8.47286675,2136.0,2134.1,0.468]
[1770222617003,7.16002675,2135.6,2134.0,7.22199842]
[1770222617204,7.16002675,2135.6,2134.1,7.45663842]
[1770222617400,7.16002675,2135.6,2133.6,7.22199842]
[1770222617597,8.23873675,2135.4,2133.4,0.23471]
[1770222617900,7.16002675,2135.0,2133.4,7.22690824]
[1770222618098,7.1638803,2135.0,2133.4,7.46161824]
[1770222618495,7.1638803,2135.0,2133.4,0.00490982]
[1770222618801,7.39463675,2134.4,2132.2,7.45684842]
[1770222619099,7.39467675,2134.0,2131.9,1.31534]
[1770222619304,7.16002675,2134.0,2132.8,1.31478]
[1770222619503,0.468,2134.3,2132.8,8.53677842]
[1770222619706,7.62802675,2134.3,2132.8,7.22199842]
[1770222619899,7.62802675,2134.3,2132.8,7.22796573]
[1770222620197,7.62802675,2134.3,2132.8,0.00596731]
[1770222620394,7.62802675,2134.3,2132.8,7.22796573]
[1770222620594,7.39464675,2134.3,2132.8,0.00596731]
[1770222621703,8.47390675,2134.3,2132.8,0.00596731]
[1770222622097,7.16002675,2133.5,2132.3,0.46896616]
[1770222622298,7.62802675,2133.4,2131.8,7.22199842]
[1770222623205,7.63160023,2133.4,2131.8,7.22714743]
[1770222623410,7.16002675,2133.2,2131.8,0.00514901]
[1770222624105,7.98210745,2133.0,2131.8,0.00514901]
[1770222624306,7.74734745,2133.0,2131.8,7.60745536]
[1770222624502,7.74734745,2133.2,2131.8,7.60745536]
[1770222624703,7.98213745,2132.8,2130.7,8.07030635]
[1770222625007,7.74734745,2132.6,2130.7,8.30531635]
[1770222625200,7.74734745,2132.6,2130.8,8.91832635]
[1770222625407,7.74734745,2132.6,2131.0,8.68321635]
[1770222625608,7.74734745,2132.6,2131.1,7.83727635]
[1770222625806,7.74734745,2132.6,2131.1,7.60230635]
[1770222626210,7.74734745,2132.6,2131.1,7.83726635]
[1770222626410,7.74734745,2132.6,2131.0,0.00409216]
[1770222626411,7.75092093,2133.4,2132.0,1.08041]
[1770222626613,7.74734745,2133.3,2131.7,7.60230635]
[1770222627106,7.74734745,2133.3,2131.9,8.68275635]
[1770222627409,0.00357348,2133.4,2132.1,7.60230635]
[1770222627607,7.75092093,2133.4,2132.1,7.60230635]
[1770222627802,7.74734745,2133.3,2132.1,8.68266635]
[1770222628008,0.00357348,2133.4,2132.3,7.83713635]
[1770222628409,7.74734745,2134.2,2132.5,7.60230635]
[1770222628608,7.74734745,2134.2,2132.6,7.83710635]
[1770222628811,0.45,2134.4,2133.1,7.60230635]
[1770222629007,7.74734745,2135.1,2133.6,7.60230635]
[1770222629402,7.75152466,2135.1,2133.6,7.60632302]
[1770222629602,7.75152466,2135.1,2133.6,0.00401667]
[1770222630511,7.75152466,2135.1,2133.6,7.84101302]
[1770222630807,7.75152466,2135.1,2133.7,7.83698635]
[1770222631003,7.75152466,2135.1,2133.6,0.00401667]
[1770222631004,7.98190745,2134.9,2133.6,0.00401667]
[1770222631209,7.74734745,2134.6,2133.6,0.00401667]
[1770222631408,7.74734745,2134.4,2133.2,0.9375]
[1770222631811,7.74734745,2134.2,2133.2,0.9375]
[1770222632506,7.74734745,2133.9,2132.2,0.469]
[1770222632808,7.74734745,2133.6,2131.9,0.23488]
[1770222633009,7.74734745,2133.4,2131.9,0.23488]
[1770222633203,7.74734745,2133.4,2132.0,7.60230635]
[1770222633406,7.74734745,2133.4,2132.2,0.23485]
[1770222633607,7.75261987,2133.4,2132.3,0.47469754]
[1770222633807,7.74734745,2133.2,2132.3,0.47469754]
[1770222634202,40.8,2133.3,2132.3,8.07700389]
[1770222634414,7.74734745,2133.8,2132.3,8.31183389]
[1770222634608,7.74734745,2133.8,2132.5,7.60230635]
[1770222634808,7.74734745,2133.8,2132.3,0.47469754]
[1770222635209,7.98201745,2133.8,2132.3,0.47469754]
[1770222635410,7.98684221,2133.8,2132.3,0.47469754]
[1770222635907,7.74734745,2133.4,2132.3,0.47469754]
[1770222636512,7.75217221,2133.8,2132.3,8.07700389]
[1770222636714,7.74734745,2133.6,2132.3,8.07700389]
[1770222637310,7.74734745,2133.6,2132.3,0.47469754]
[1770222637513,7.98204745,2133.6,2132.3,0.47469754]
[1770222637714,7.74734745,2133.6,2132.3,0.47469754]
[1770222638113,7.74734745,2133.4,2132.3,0.47469754]
[1770222638312,7.98206745,2133.4,2132.3,0.47469754]
[1770222638810,7.74734745,2133.4,2132.3,0.47469754]
[1770222639713,7.74734745,2133.2,2132.3,0.47469754]
[1770222639917,7.74734745,2132.9,2131.4,0.23494]
[1770222640114,7.74734745,2132.9,2130.5,4.39503592]
[1770222640115,7.74734745,2132.7,2130.9,7.83729635]
[1770222640313,0.469,2132.8,2131.4,7.60230635]
[1770222640514,0.469,2132.8,2131.4,7.83724635]
[1770222640913,8.21634745,2132.8,2131.4,7.60661783]
[1770222641114,7.74734745,2132.5,2131.4,0.00431148]
[1770222641708,7.98216745,2132.5,2131.4,0.00431148]
[1770222641916,7.98218745,2132.3,2130.6,7.60230635]
[1770222642106,7.74734745,2132.1,2130.6,7.60230635]
[1770222642311,7.74734745,2132.1,2130.8,7.60230635]
[1770222642512,7.74734745,2132.1,2130.8,7.83730635]
[1770222642914,7.74734745,2132.1,2130.8,7.84252359]
[1770222642915,7.75336008,2132.1,2130.8,7.84252359]
[1770222643117,7.75336008,2132.1,2130.8,7.60752359]
[1770222643615,0.00601263,2132.1,2131.1,7.60230635]
[1770222643914,0.469,2132.6,2131.3,7.60230635]
[1770222644113,0.23479,2132.8,2131.3,7.60230635]
[1770222644114,7.98213745,2132.8,2131.3,7.60230635]
[1770222644314,8.45113745,2132.8,2131.3,7.60230635]
[1770222644509,7.98207745,2133.3,2131.8,7.60230635]
[1770222644711,7.74734745,2133.3,2131.8,7.60230635]
[1770222644908,7.75156236,2133.3,2131.8,7.60230635]
[1770222645209,7.74734745,2132.8,2131.4,8.07130635]
[1770222645708,7.74734745,2132.8,2131.6,7.60230635]
[1770222646114,7.74734745,2132.8,2131.6,7.83721635]
[1770222646316,0.00421491,2133.3,2131.6,7.83721635]
[1770222646317,7.74734745,2133.2,2131.6,7.83721635]
[1770222646614,0.00421491,2133.3,2132.3,0.23484]
[1770222646818,7.75156236,2133.3,2132.3,0.00600302]
[1770222647312,7.75156236,2133.3,2131.7,2.78720605]
[1770222647511,7.75156236,2133.3,2131.7,0.2349]
[1770222647512,7.74734745,2133.1,2131.7,0.2349]
[1770222647820,7.98211745,2132.9,2131.5,2.78720605]
[1770222648023,7.98211745,2132.9,2131.4,3.25620605]
[1770222648412,7.98211745,2132.9,2131.4,3.26086574]
[1770222648616,7.98211745,2132.9,2131.4,0.47365969]
[1770222648815,7.98211745,2132.9,2131.4,3.02679574]
[1770222649016,7.98211745,2132.9,2131.8,0.23489]
[1770222649017,7.74734745,2132.9,2131.8,0.23489]
[1770222649620,7.74734745,2132.9,2131.4,2.79186574]
[1770222649812,7.74734745,2132.9,2131.4,3.02679574]
[1770222650213,7.98212745,2132.9,2131.4,3.02679574]
[1770222650414,7.74734745,2132.7,2131.4,0.00465969]
[1770222650624,7.74734745,2132.0,2130.5,2.78720605]
[1770222650820,7.74734745,2131.8,2130.6,10.3895124]
[1770222651014,7.74734745,2131.8,2130.9,0.23499]
[1770222651320,0.469,2131.9,2131.0,0.23498]
[1770222651518,0.469,2131.9,2131.3,0.23494]
[1770222651720,0.47384568,2131.9,2131.3,0.23494]
[1770222652221,0.47384568,2131.9,2131.0,0.00334426]
[1770222652619,0.47384568,2131.9,2131.1,0.23496]
[1770222652821,0.47384568,2131.9,2131.2,0.23496]
[1770222653017,7.74734745,2132.6,2131.5,0.23492]
[1770222653221,7.74734745,2132.6,2131.7,0.2349]
[1770222654025,7.75193352,2132.6,2131.2,3.02215605]
[1770222654320,7.75193352,2132.6,2131.2,0.23495]
[1770222654624,7.99597247,2131.9,2131.0,0.00334426]
[1770222654824,8.46497247,2131.9,2131.0,0.00334426]
[1770222655020,7.76109247,2131.7,2130.2,0.23507]
[1770222655221,7.76109247,2131.5,2130.2,3.02227605]
[1770222655421,7.76109247,2131.5,2130.3,2.78720605]
[1770222655924,7.76109247,2131.5,2130.3,0.00507716]
[1770222656230,7.76109247,2131.3,2130.3,0.00507716]
[1770222657021,7.76109247,2131.3,2129.7,0.23512]
[1770222657620,7.76109247,2131.1,2129.7,0.23512]
[1770222658020,7.76508118,2131.1,2129.8,7.97311451]
[1770222658222,7.76508118,2131.1,2129.9,0.2351]
[1770222658426,7.76508118,2131.1,2129.9,7.97310451]
[1770222658630,0.00398871,2131.1,2130.2,0.23507]
[1770222659127,7.15874218,2131.1,2130.2,0.23507]
[1770222659723,7.15874218,2131.1,2129.8,2.78318977]
[1770222660115,7.15874218,2131.1,2129.8,10.75630428]
[1770222660319,7.15874218,2131.1,2129.8,3.01829977]
[1770222660718,7.15874218,2131.1,2129.7,2.78866603]
[1770222660921,7.15475347,2130.7,2129.7,0.00547626]
[1770222661226,7.15874218,2131.1,2129.9,7.97309451]
[1770222661417,7.15874218,2131.1,2129.7,0.00547626]
[1770222661623,7.15475347,2130.7,2129.7,0.00547626]
[1770222661816,7.15475347,2130.7,2129.2,2.78318977]
[1770222662024,7.15475347,2130.3,2128.8,2.78318977]
[1770222662227,7.15475347,2130.3,2128.3,0.23528]
[1770222662228,7.15475347,2129.8,2128.3,0.23528]
[1770222662521,7.15475347,2129.5,2128.4,1.08225]
[1770222662723,7.15475347,2129.9,2129.0,0.2352]
[1770222663027,0.00558332,2129.9,2129.2,0.23518]
[1770222663322,7.15475347,2130.3,2129.4,7.97315451]
[1770222663520,7.15475347,2130.3,2129.0,7.74325561]
[1770222664021,7.15475347,2130.3,2129.0,0.0052511]
[1770222664222,7.15475347,2130.3,2129.2,7.97318451]
[1770222664424,7.15815063,2130.3,2129.3,0.23517]
[1770222666125,7.15815063,2130.3,2129.2,7.73800451]
[1770222666331,0.469,2131.0,2129.6,7.73800451]
[1770222666527,7.62375347,2131.0,2129.8,0.23511]
[1770222666726,7.62375347,2131.0,2129.9,0.2351]
[1770222666927,7.62375347,2131.0,2129.4,7.73800451]
[1770222667233,7.62375347,2131.0,2129.7,0.23512]
[1770222667534,7.15475347,2131.5,2130.7,0.23501]
[1770222668026,7.15475347,2131.5,2130.3,7.73800451]
[1770222668233,7.15475347,2130.9,2129.2,3.24896245]
[1770222668427,7.15475347,2130.7,2129.2,0.238542]
[1770222668627,7.38976347,2130.7,2129.2,0.238542]
[1770222669032,7.15475347,2130.4,2129.2,0.003372]
[1770222669327,7.15475347,2130.2,2128.6,0.23524]
[1770222669533,7.15475347,2129.7,2128.2,2.77996245]
[1770222669728,7.15475347,2129.5,2128.1,0.23529]
[1770222669924,7.15475347,2129.5,2128.3,0.23528]
[1770222670333,7.15475347,2129.5,2128.4,0.23527]
[1770222671132,7.15475347,2129.8,2128.3,7.74231353]
[1770222671434,7.38987347,2129.8,2128.3,0.00430902]
[1770222671634,7.15475347,2129.8,2128.4,1.08225]
[1770222671932,7.15475347,2129.8,2128.6,0.23524]
[1770222672335,7.15475347,2129.8,2128.3,0.00430902]
[1770222673030,0.23511,2129.9,2128.3,0.00430902]
[1770222673031,7.15475347,2129.4,2128.3,0.00430902]
[1770222673238,7.160196,2129.4,2127.7,7.97334451]
[1770222673440,7.160196,2129.4,2127.7,0.23534]
[1770222673835,7.15475347,2129.2,2127.7,0.23534]
[1770222674133,7.62375347,2129.2,2127.7,0.23905643]
[1770222675237,7.62375347,2129.2,2127.7,7.97706094]
[1770222675438,7.62375347,2129.2,2128.1,7.97329451]
[1770222675638,0.00544253,2129.4,2128.4,0.23527]
[1770222676239,7.160196,2129.4,2127.8,0.23532]
[1770222676741,7.160196,2129.4,2128.1,8.82040451]
[1770222676940,7.160196,2129.4,2128.4,0.23526]
[1770222677542,0.00544253,2129.4,2128.6,0.23524]
[1770222678036,0.00544253,2129.4,2127.7,0.00371643]
[1770222678037,7.15475347,2128.8,2127.7,0.00371643]
[1770222678437,7.15475347,2128.8,2127.7,2.78367626]
[1770222678832,7.15475347,2128.8,2126.8,8.20700451]
[1770222679033,7.15475347,2128.0,2126.6,7.73800451]
[1770222679238,7.15475347,2128.0,2126.9,7.97343451]
[1770222679433,7.15475347,2128.5,2127.1,10.51796434]
[1770222679633,7.15475347,2128.5,2127.2,0.2354]
[1770222679835,7.15475347,2128.5,2127.4,2.77995983]
[1770222680134,7.39001347,2128.5,2127.2,0.00545136]